fUSD/lending_fUSD_20260410
["ID","MTS","AMOUNT","RATE_DAILY","PERIOD"]
[420230800,1775827833372,-65104.2145702,0.000125,2]
[420230801,1775827833387,-22347.474911,0.000125,2]
[420230802,1775827833405,-1622.1938888,0.000125,2]
[420230803,1775827833415,-7147.2918513,0.000125,2]
[420230804,1775827833444,-3627.2747978,0.000125,2]
[420230805,1775827833453,-649.17989117,0.00012871,2]
[420230806,1775827833464,-150.0,0.000129,2]
[420230807,1775827833477,-184.9712397,0.000129,2]
[420230808,1775827833489,-604.52141603,0.00012948,2]
[420230809,1775827833499,-19669.79103898,0.00013,2]
[420230810,1775827833510,-30000.0,0.00013,2]
[420230811,1775827833530,-1033.67,0.00013048,2]
[420230812,1775827833540,-506.0,0.000131,2]
[420230813,1775827833552,-420.0,0.00013172,2]
[420230814,1775827833563,-420.0,0.00013172,2]
[420230815,1775827833574,-1680.0,0.00013199,2]
[420230816,1775827833583,-228.0,0.00013214,2]
[420230817,1775827833598,-351.93432711,0.00013228,2]
[420230818,1775827833610,-604.52141596,0.00013276,2]
[420230819,1775827833619,-197.0,0.00013349,2]
[420230820,1775827833635,-627.0,0.00013356,2]
[420230821,1775827833657,-420.0,0.000134,2]
[420230822,1775827833666,-184.9712397,0.000134,2]
[420230823,1775827833677,-3240.0,0.00013425,2]
[420230824,1775827833696,-1448.0,0.00013471,2]
[420230825,1775827833706,-470.0,0.00013471,2]
[420230826,1775827833720,-340.0,0.00013498,2]
[420230827,1775827833732,-604.52141596,0.00013604,2]
[420230828,1775827833752,-587.0,0.00013642,2]
[420230829,1775827833761,-312.0,0.00013642,2]
[420230830,1775827833770,-366.0,0.00013669,2]
[420230831,1775827833799,-226.0,0.00013697,2]
[420230832,1775827833808,-500.0,0.00013698,2]
[420230833,1775827833817,-500.0,0.00013698,2]
[420230834,1775827833837,-500.0,0.00013698,2]
[420230835,1775827833847,-500.0,0.00013698,2]
[420230836,1775827833861,-500.0,0.00013698,2]
[420230837,1775827833875,-500.0,0.00013698,2]
[420230838,1775827833889,-500.0,0.00013698,2]
[420230839,1775827833900,-1000.0,0.00013699,2]
[420230840,1775827833910,-519.71,0.00013749,2]
[420230841,1775827833920,-192.41,0.00013794,30]
[420230842,1775827833934,-1800.0,0.000138,2]
[420230843,1775827833947,-184.9712397,0.000139,2]
[420230844,1775827833958,-689.0,0.00013907,2]
[420230845,1775827833968,-604.52141596,0.00013932,2]
[420230846,1775827833988,-519.71,0.00014023,2]
[420230847,1775827834000,-185.0,0.00014034,3]
[420230848,1775827834009,-7069.0618529,0.00014058,2]
[420230849,1775827834024,-4986.3956558,0.00014087,2]
[420230850,1775827834035,-1594.7763754,0.00014087,2]
[420230851,1775827834046,-451.37622508,0.00014105,2]
[420230852,1775827834056,-14526.7138233,0.00014106,2]
[420230853,1775827834077,-809.3544065,0.00014106,2]
[420230854,1775827834088,-174.7631,0.000142,2]
[420230855,1775827834100,-604.52141596,0.0001426,2]
[420230856,1775827834117,-519.71,0.00014297,2]
[420230857,1775827834130,-500.0,0.00014301,2]
[420230858,1775827834145,-161.3,0.00014384,2]
[420230859,1775827834156,-184.9712397,0.000144,2]
[420230860,1775827834165,-1577.3209033,0.00014412,2]
[420230861,1775827834189,-1112.6152612,0.00014441,2]
[420230862,1775827834199,-355.842708,0.00014441,2]
[420230863,1775827834220,-182.0,0.0001446,2]
[420230864,1775827834231,-587.0,0.0001446,2]
[420230865,1775827834261,-3241.3479818,0.00014464,2]
[420230866,1775827834270,-180.5913783,0.00014464,2]
[420230867,1775827834303,-2351.0,0.00014519,2]
[420230868,1775827834313,-240.3,0.00014522,7]
[420230869,1775827834328,-293.7,0.00014526,7]
[420230870,1775827834353,-475.0,0.00014543,2]
[420230871,1775827834363,-222.85,0.00014555,7]
[420230872,1775827834393,-519.71,0.00014571,2]
[420230873,1775827834403,-493.0,0.00014572,2]
[420230874,1775827834430,-604.52141596,0.00014588,2]
[420230875,1775827834442,-384.81,0.00014635,30]
[420230876,1775827834463,-472.513069,0.00014699,2]
[420230877,1775827834481,-587.0,0.00014708,2]
[420230878,1775827834518,-289.25983808,0.00014733,2]
[420230879,1775827834528,-519.71,0.00014845,2]
[420230880,1775827834918,-5000.0,0.00014899,2]
[420230881,1775827834939,-184.9712397,0.000149,2]
[420230882,1775827834951,-4478.06,0.00014903,2]
[420230883,1775827834974,-2000.0,0.00014904,2]
[420230884,1775827834986,-604.52141596,0.00014916,2]
[420230885,1775827835005,-669.0,0.00014922,2]
[420230886,1775827835028,-766.0,0.00014952,2]
[420230887,1775827835039,-500.0,0.00014973,2]
[420230888,1775827835067,-500.0,0.00014973,2]
[420230889,1775827835077,-500.0,0.00014973,2]
[420230890,1775827835092,-500.0,0.00014973,2]
[420230891,1775827835109,-500.0,0.00014973,2]
[420230892,1775827835118,-500.0,0.00014998,2]
[420230893,1775827835129,-222.17186067,0.00014998,2]
[420230894,1775827835143,-500.0,0.00014998,2]
[420230895,1775827835154,-500.0,0.00014998,2]
[420230896,1775827835163,-433.6235914,0.00014998,2]
[420230897,1775827835181,-500.0,0.00014998,2]
[420230898,1775827835193,-500.0,0.00014998,2]
[420230899,1775827835209,-359.02832821,0.00014998,2]
[420230900,1775827835229,-18736.45779727,0.00014999,2]
[420230901,1775827835251,-66447.11539616,0.00014999,2]
[420230902,1775827835269,-32847.15230666,0.00014999,2]
[420230903,1775827835282,-1160.87387984,0.00014999,2]
[420230904,1775827835312,-8790.81616693,0.00014999,2]
[420230907,1775827838369,-956.92731643,0.00014999,2]
[420230908,1775827838624,-643.48999995,0.00014999,2]
[420231069,1775827841217,-650.99366292,0.00014999,2]
[420231082,1775827841339,-5104.98908224,0.00014999,2]
[420231090,1775827841410,-1087.17,0.00014999,2]
[420231197,1775827843372,-1565.05413054,0.00014999,2]
[420231200,1775827843397,-337.54505367,0.00014999,2]
[420231203,1775827843431,-10902.75692649,0.00014999,2]
[420231207,1775827843469,-768.6582809,0.00014999,2]
[420231209,1775827843480,-11067.00827321,0.00014999,2]
[420231259,1775827844223,-2.16068564,0.00014999,2]
[420231306,1775827844861,-56360.27482228,0.00014999,2]
[420231598,1775827849177,-500.0,0.000125,2]
[420231600,1775827849187,-222.15463088,0.00014999,2]
[420231602,1775827849210,-6660.54999416,0.00014999,2]
[420231605,1775827849226,-4101.59999995,0.00014999,2]
[420231614,1775827849322,-71586.25159388,0.00014999,2]
[420231616,1775827849336,-53253.26646259,0.00014999,2]
[420231618,1775827849346,-151.0,0.00014999,2]
[420231620,1775827849357,-151.0,0.00014999,2]
[420231622,1775827849366,-151.0,0.00014999,2]
[420231624,1775827849378,-151.0,0.00014999,2]
[420231626,1775827849390,-151.0,0.00014999,2]
[420231628,1775827849405,-151.0,0.00014999,2]
[420231631,1775827849418,-151.0,0.00014999,2]
[420231632,1775827849429,-151.0,0.00014999,2]
[420231634,1775827849445,-384.0,0.00014999,2]
[420231636,1775827849460,-519.74,0.00015119,2]
[420231638,1775827849470,-195.462522,0.0001519,2]
[420231640,1775827849483,-597.62670957,0.00015199,2]
[420231642,1775827849498,-601.3376128,0.00015199,2]
[420231644,1775827849509,-5000.0,0.000152,2]
[420231647,1775827849519,-1033.67,0.00015211,2]
[420231648,1775827849537,-604.52141596,0.00015244,2]
[420231650,1775827849547,-506.0,0.00015258,3]
[420231652,1775827849560,-1347.0,0.00015276,2]
[420231655,1775827849578,-168.0,0.00015292,2]
[420231657,1775827849595,-5000.0,0.000153,2]
[420231658,1775827849611,-1697.0,0.00015352,2]
[420231661,1775827849647,-500.0,0.00015352,2]
[420231663,1775827849668,-500.0,0.00015352,2]
[420231665,1775827849703,-500.0,0.00015352,2]
[420231666,1775827849737,-500.0,0.00015352,2]
[420231668,1775827849755,-500.0,0.00015352,2]
[420231670,1775827849767,-500.0,0.00015352,2]
[420231672,1775827849784,-150.0,0.00015352,2]
[420231674,1775827849804,-150.0,0.00015352,2]
[420231676,1775827849816,-200.0,0.00015352,2]
[420231678,1775827849826,-5000.0,0.000154,2]
[420231680,1775827849843,-203.6142,0.000154,2]
[420231683,1775827849854,-184.9712397,0.000154,2]
[420231685,1775827849864,-700.0,0.00015422,2]
[420231688,1775827849881,-214.778668,0.00015434,2]
[420231691,1775827849894,-577.22,0.00015477,30]
[420231693,1775827849903,-5000.0,0.000155,2]
[420231695,1775827849913,-882.95194864,0.00015521,2]
[420231697,1775827849935,-500.0,0.00015521,2]
[420231699,1775827849945,-1130.73809,0.00015521,2]
[420231701,1775827849955,-1000.0,0.00015521,2]
[420231703,1775827849970,-604.52141596,0.00015572,2]
[420231705,1775827849979,-168.0,0.0001558,2]
[420231707,1775827849992,-527.94678494,0.000156,2]
[420231709,1775827850003,-5000.0,0.000156,2]
[420231711,1775827850017,-1519.608,0.00015641,2]
[420231713,1775827850027,-162.987,0.00015641,2]
[420231714,1775827850039,-464.33,0.00015684,2]
[420231716,1775827850059,-5000.0,0.000157,2]
[420231718,1775827850068,-5000.0,0.000158,2]
[420231720,1775827850088,-9656.08413962,0.0001584,2]
[420231722,1775827850105,-823.0,0.00015874,2]
[420231724,1775827850115,-5138.92333807,0.000159,2]
[420231727,1775827850136,-289.25983808,0.000159,2]
[420231729,1775827850147,-604.52141596,0.000159,2]
[420231730,1775827850157,-184.9712397,0.000159,2]
[420231732,1775827850181,-1500.0,0.000159,2]
[420231734,1775827850192,-3292.0,0.00015971,2]
[420231736,1775827850205,-5491.0,0.00015973,2]
[420231738,1775827850221,-501.29862075,0.00015973,2]
[420231740,1775827850234,-500.0,0.00015973,2]
[420231742,1775827850244,-500.0,0.00015973,2]
[420231744,1775827850257,-176.66503354,0.00015973,2]
[420231746,1775827850270,-500.0,0.00015973,2]
[420231748,1775827850281,-500.0,0.00015973,2]
[420231750,1775827850298,-500.0,0.00015973,2]
[420231752,1775827850310,-500.0,0.00015973,2]
[420231754,1775827850320,-500.0,0.00015973,2]
[420231756,1775827850334,-500.0,0.00015973,2]
[420231758,1775827850343,-500.0,0.00015973,2]
[420231760,1775827850355,-508.8214542,0.00015973,2]
[420231762,1775827850365,-168.0,0.00015974,2]
[420231764,1775827850378,-413.9402994,0.00015999,2]
[420231766,1775827850391,-29732.2285333,0.00015999,2]
[420231768,1775827850401,-162.88643686,0.00015999,2]
[420231770,1775827850416,-500.0,0.00015999,2]
[420231772,1775827850426,-501.70489215,0.00015999,2]
[420231774,1775827850438,-151.0,0.00015999,2]
[420231776,1775827850448,-151.0,0.00015999,2]
[420231778,1775827850464,-153.374843,0.00015999,2]
[420231780,1775827850480,-151.0,0.00015999,2]
[420231782,1775827850496,-500.0,0.00015999,2]
[420231784,1775827850507,-500.0,0.00015999,2]
[420231786,1775827850530,-500.0,0.00015999,2]
[420231788,1775827850548,-500.0,0.00015999,2]
[420231790,1775827850557,-500.0,0.00015999,2]
[420231792,1775827850587,-500.0,0.00015999,2]
[420231794,1775827850597,-500.0,0.00015999,2]
[420231796,1775827850620,-500.0,0.00015999,2]
[420231798,1775827850639,-500.0,0.00015999,2]
[420231799,1775827850660,-592.02763499,0.00015999,2]
[420231802,1775827850679,-11625.39819045,0.00016,2]
[420231861,1775827851508,-170616.51323091,0.00016,2]
[420231864,1775827851569,-354.42310879,0.00016,2]
[420231866,1775827851645,-659.96233254,0.00016,2]
[420231869,1775827851704,-1172.261273,0.00016,2]
[420231933,1775827949178,5000.01,0.00010493,2]
[420231934,1775827949213,4999.99,0.00010493,2]
[420231935,1775827955967,10000.0,0.00010493,2]
[420231936,1775828139889,-171.0,0.00010493,3]
[420231937,1775828167384,155.0,0.00010493,3]
[420231938,1775828225183,156.0,0.00010493,3]
[420231939,1775828286603,156.0,0.00010493,3]
[420231940,1775828332479,173.9,6.373e-05,2]
[420231941,1775828332530,173.9,7.966e-05,2]
[420231942,1775828332587,173.9,9.56e-05,2]
[420231943,1775828345986,156.0,0.00010493,3]
[420231944,1775828407282,156.0,0.00010493,3]
[420231945,1775828414878,171.0,0.00010493,3]
[420231946,1775828467518,156.0,0.00010493,3]
[420231948,1775828526754,156.0,0.00010493,3]
[420231949,1775828532881,-1531.0,0.000108,5]
[420231950,1775828532929,-310.0,0.00010985,2]
[420231951,1775828532979,-172.0,0.00010985,2]
[420231952,1775828533095,-150.0,0.00010985,2]
[420231953,1775828533158,-173.9,0.00011153,2]
[420231954,1775828533219,-150.0,0.000112,2]
[420231955,1775828534245,-150.39907194,0.000112,2]
[420231956,1775828534316,-200.0,0.00011935,2]
[420231957,1775828534370,-1953.99,0.00011984,2]
[420231958,1775828534418,-91.23185612,0.00011989,2]
[420231959,1775828534461,-208.76814388,0.00011989,2]
[420231960,1775828535222,-0.01,0.0001199,2]
[420231961,1775828535330,-0.02,0.0001199,2]
[420231962,1775828535513,-0.04,0.0001199,2]
[420231963,1775828538138,-0.08,0.0001199,2]
[420231964,1775828538268,-4075.23794312,0.0001199,2]
[420231965,1775828538321,-924.61205688,0.0001199,2]
[420231966,1775828538359,-600.0,0.00012084,2]
[420231967,1775828538879,-2000.0,0.00012084,2]
[420231968,1775828538925,-482.4425,0.00012199,2]
[420231970,1775828539330,-1010.82102718,0.000122,2]
[420231971,1775828539352,-506.73647282,0.00012296,2]
[420231972,1775828539412,-482.4425,0.00012296,2]
[420231973,1775828539442,-35.125,0.00012296,2]
[420231974,1775828541117,-175.69602718,0.00012296,2]
[420231975,1775828541194,265.12737532,0.00010885,2]
[420231976,1775828586495,154.0,0.00010493,3]
[420231977,1775828650210,154.0,0.00010493,3]
[420231978,1775828714391,154.0,0.00010493,3]
[420231979,1775828714483,166.0,0.00010493,3]
[420231980,1775828831469,154.0,0.00010493,3]
[420231981,1775828887021,154.0,0.00010493,3]
[420231982,1775828947010,112.34262677,0.00010493,3]
[420231983,1775828947044,41.65737323,0.00010493,3]
[420231984,1775829009852,154.0,0.00010493,3]
[420231985,1775829013261,-254.75,0.00012122,7]
[420231986,1775829013295,-362.35444586,0.00012122,2]
[420231987,1775829013333,-311.36,0.00012126,7]
[420231988,1775829013367,-150.0,0.00012199,2]
[420231989,1775829013402,-1200.0,0.00012199,2]
[420231990,1775829013443,-143.08110828,0.00012199,2]
[420231991,1775829013665,-156.91889172,0.00012199,2]
[420231992,1775829013706,-909.73892448,0.000122,2]
[420231993,1775829013869,-2758.485884,0.000122,2]
[420231994,1775829013888,-5000.01,0.000122,2]
[420231995,1775829016087,-5000.01,0.000122,2]
[420231996,1775829016190,-5000.01,0.000122,2]
[420231997,1775829016307,-5000.01,0.000122,2]
[420232003,1775829032312,-2128.51485111,0.000122,2]
[420232004,1775829032352,-5100.68884856,0.000122,2]
[420232005,1775829032380,-69501.17582686,0.000122,2]
[420232006,1775829032400,-20457.19544478,0.000122,2]
[420232007,1775829032423,-28566.32715686,0.00012298,2]
[420232008,1775829032436,-150.0,0.000123,2]
[420232009,1775829032460,-159.52,0.00012526,2]
[420232010,1775829032473,-151.0,0.000126,2]
[420232011,1775829032488,-909.7389244,0.00012611,2]
[420232012,1775829032512,-151.0,0.00012623,2]
[420232013,1775829032524,-173.9,0.00012746,2]
[420232014,1775829032548,-673.0,0.00012788,2]
[420232015,1775829032571,-250.0,0.00013,2]
[420232016,1775829032591,-909.7389244,0.00013022,2]
[420232017,1775829032607,-415.07545282,0.000131,2]
[420232019,1775829032639,-90.92454718,0.000131,2]
[420232021,1775829032655,-509.0,0.000131,2]
[420232022,1775829032668,-1600.0,0.00013166,2]
[420232023,1775829032687,-1500.0,0.00013206,2]
[420232024,1775829032702,-211.0,0.0001329,2]
[420232025,1775829032720,-1626.12,0.000133,2]
[420232026,1775829032735,-1032.0,0.00013325,2]
[420232027,1775829032754,-205.00306992,0.00013334,2]
[420232028,1775829032769,-814.83802742,0.00013355,2]
[420232029,1775829032787,-420.0,0.00013389,2]
[420232030,1775829032803,-1680.0,0.00013419,2]
[420232031,1775829032822,-909.7389244,0.00013433,2]
[420232032,1775829032842,-156.12,0.00013478,2]
[420232033,1775829032864,-15552.36,0.00013497,2]
[420232034,1775829032885,-174.7127,0.000135,2]
[420232035,1775829032913,-216.0,0.00013514,2]
[420232036,1775829032937,-500.0,0.00013698,2]
[420232037,1775829032972,-166.66,0.00013699,2]
[420232038,1775829032990,-1302.95,0.00013699,2]
[420232039,1775829033013,-1000.0,0.00013699,2]
[420232040,1775829033034,-161.82,0.00013699,2]
[420232041,1775829033060,-172.0,0.00013732,2]
[420232042,1775829033074,-198.18148552,0.00013773,2]
[420232043,1775829033091,-3000.0,0.00013808,2]
[420232044,1775829033113,-1700.0,0.00013808,2]
[420232045,1775829033128,-166.66,0.00013836,2]
[420232046,1775829033146,-909.7389244,0.00013844,2]
[420232047,1775829033162,-166.66,0.00013973,2]
[420232048,1775829033184,-214.46,0.00014015,2]
[420232049,1775829033203,-166.66,0.0001411,2]
[420232050,1775829033228,-166.66,0.00014247,2]
[420232051,1775829033256,-909.7389244,0.00014256,2]
[420232052,1775829033280,-166.66,0.00014384,2]
[420232053,1775829033298,-1302.95,0.00014384,2]
[420232054,1775829033324,-698.42784199,0.000144,4]
[420232055,1775829033339,-216.43008394,0.00014533,2]
[420232056,1775829033369,-909.7389244,0.00014667,2]
[420232057,1775829033383,-1604.22651762,0.00014684,2]
[420232058,1775829035717,-397.84647269,0.00014684,2]
[420232059,1775829038554,-1412.62,0.00014684,2]
[420232060,1775829038571,-7597.2,0.00014684,2]
[420232061,1775829038595,-748.26893567,0.00014684,2]
[420232062,1775829038624,-16392.42,0.00014684,2]
[420232063,1775829038687,-71131.9352165,0.00014684,2]
[420232064,1775829038704,-587.0,0.00014695,2]
[420232065,1775829038719,-6888.0,0.00014756,2]
[420232066,1775829038734,-2351.0,0.00014761,2]
[420232067,1775829038760,-203.497,0.000148,2]
[420232068,1775829038777,-1600.0,0.00014811,2]
[420232069,1775829038802,-156.12,0.00014826,2]
[420232070,1775829038818,-160.0,0.00014901,2]
[420232071,1775829038840,-300.0,0.00015,2]
[420232072,1775829038857,-1302.95,0.00015068,2]
[420232073,1775829038869,-909.7389244,0.00015078,2]
[420232074,1775829038888,-300.0,0.000151,5]
[420232075,1775829038901,-3000.0,0.00015178,2]
[420232076,1775829038914,-1700.0,0.00015178,2]
[420232077,1775829038931,-700.0,0.000152,5]
[420232078,1775829039158,-274.0766702,0.00015215,2]
[420232079,1775829039177,-362.41940288,0.00015215,2]
[420232081,1775829039190,-304.21673453,0.00015215,2]
[420232082,1775829039212,-403.86310929,0.00015215,2]
[420232083,1775829039226,-234.328,0.00015276,2]
[420232084,1775829039240,-1100.0,0.000153,5]
[420232085,1775829039258,-3359.36330849,0.00015311,2]
[420232086,1775829039269,-506.0,0.0001533,3]
[420232087,1775829039292,-1646.0,0.00015352,2]
[420232088,1775829039306,-150.0,0.00015352,2]
[420232089,1775829039317,-150.0,0.00015352,2]
[420232090,1775829039346,-1400.0,0.000154,5]
[420232091,1775829039358,-500.0,0.00015406,2]
[420232093,1775829039373,-500.0,0.00015406,2]
[420232095,1775829039383,-500.0,0.00015406,2]
[420232096,1775829039397,-500.0,0.00015406,2]
[420232097,1775829039406,-500.0,0.00015406,2]
[420232098,1775829039420,-500.0,0.00015406,2]
[420232099,1775829039430,-500.0,0.00015406,2]
[420232100,1775829039442,-500.0,0.00015406,2]
[420232101,1775829039452,-909.7389244,0.00015489,2]
[420232102,1775829039464,-1800.0,0.000155,5]
[420232103,1775829039474,-2024.44,0.00015507,2]
[420232104,1775829039484,-300.0,0.000156,5]
[420232105,1775829039494,-496.0,0.00015628,2]
[420232106,1775829039505,-154.0,0.00015638,3]
[420232107,1775829039516,-2862.511,0.0001568,2]
[420232108,1775829039526,-170.004,0.0001568,2]
[420232109,1775829039538,-496.0,0.00015698,2]
[420232110,1775829039551,-300.0,0.000157,5]
[420232111,1775829039561,-2215.70680753,0.00015727,2]
[420232112,1775829039578,-4158.97115837,0.00015727,2]
[420232113,1775829039588,-496.0,0.00015744,2]
[420232114,1775829039600,-1302.95,0.00015753,2]
[420232115,1775829039610,-300.0,0.000158,5]
[420232116,1775829039621,-1296.35435504,0.00015827,2]
[420232117,1775829039638,-50.64564496,0.00015827,2]
[420232118,1775829039648,-415.0,0.00015827,2]
[420232119,1775829039661,-6023.0,0.00015827,2]
[420232120,1775829039677,-2024.44,0.00015895,2]
[420232121,1775829039688,-271.16224208,0.000159,10]
[420232122,1775829039698,-5000.0,0.000159,2]
[420232123,1775829039718,-909.7389244,0.000159,2]
[420232124,1775829039731,-300.0,0.000159,5]
[420232125,1775829039746,-168.0,0.00015908,2]
[420232126,1775829039762,-1410.0,0.00015931,2]
[420232127,1775829039775,-236.13754649,0.00015973,2]
[420232128,1775829039790,-501.11386332,0.00015973,2]
[420232129,1775829039805,-500.0,0.00015973,2]
[420232130,1775829039819,-500.0,0.00015973,2]
[420232131,1775829039830,-500.0,0.00015973,2]
[420232132,1775829039851,-500.0,0.00015973,2]
[420232133,1775829039862,-500.0,0.00015973,2]
[420232134,1775829039887,-500.0,0.00015973,2]
[420232135,1775829039899,-155.0,0.00015999,2]
[420232136,1775829039910,-500.0,0.00015999,2]
[420232137,1775829039934,-500.0,0.00015999,2]
[420232138,1775829039950,-301.31982975,0.00015999,2]
[420232139,1775829039967,-64556.3619103,0.00016,2]
[420232140,1775829040003,-708.38683977,0.00016,2]
[420232141,1775829040021,-843.93275685,0.00016,2]
[420232142,1775829040055,-691.58645727,0.00016,2]
[420232143,1775829040084,-2485.97986445,0.00016,2]
[420232145,1775829040112,-354.91079851,0.00016,2]
[420232147,1775829040135,-916.891703,0.00016,2]
[420232150,1775829040162,-796.01445531,0.00016,2]
[420232151,1775829040203,-725.85,0.00016,2]
[420232152,1775829040219,-1657.5764151,0.00016,2]
[420232153,1775829040236,-1842.22932033,0.00016,2]
[420232154,1775829040255,-2992.09560657,0.00016,2]
[420232155,1775829040270,-3494.11304809,0.00016,2]
[420232156,1775829040286,-2692.33929163,0.00016,2]
[420232157,1775829040307,-531.13294994,0.00016,2]
[420232158,1775829040319,-15803.85693022,0.00016,2]
[420232159,1775829040346,-874.22355268,0.00016,2]
[420232160,1775829040360,-732.91038678,0.00016,2]
[420232161,1775829040378,-315.0,0.00016,2]
[420232164,1775829040678,-9136.69,0.00016,2]
[420232165,1775829040695,-3351.79532226,0.00016,2]
[420232166,1775829041269,-875.89626483,0.00016,2]
[420232167,1775829041336,-1025.49280924,0.00016,2]
[420232168,1775829041352,-263.04381951,0.00016,2]
[420232169,1775829041380,-49831.96705997,0.00016,2]
[420232170,1775829041395,-20153.67777399,0.00016,2]
[420232171,1775829041423,-11238.88023036,0.00016,2]
[420232172,1775829041521,-899.72188916,0.00016,2]
[420232173,1775829041556,-6667.26990554,0.00016,2]
[420232175,1775829041580,-3300.0,0.00016,2]
[420232217,1775829046574,-2471.0,0.00015827,2]
[420232218,1775829046588,-5585.25780499,0.00016,2]
[420232219,1775829046599,-57326.51376121,0.00016,2]
[420232220,1775829046639,-1304.35656647,0.00016,2]
[420232221,1775829046652,-17198.33181195,0.00016,2]
[420232223,1775829049472,-10652.53206429,0.00016,2]
[420232225,1775829049497,-1326.634838,0.00016,2]
[420232228,1775829049665,-293146.77248324,0.00016,2]
[420232230,1775829049871,-2640.0,0.00016,2]
[420232231,1775829451990,2017.0,8.91e-05,2]
[420232232,1775829505444,-1531.0,0.000114,5]
[420232233,1775829505497,-300.0,0.00011548,2]
[420232234,1775829505593,-1338.01,0.00011549,2]
[420232235,1775829505666,-1338.02,0.00011549,2]
[420232236,1775829505705,-2323.97,0.00011549,2]
[420232237,1775829505777,-320.0,0.00011549,2]
[420232238,1775829505821,-600.0,0.0001199,2]
[420232239,1775829505858,-192.05599522,0.00012,2]
[420232240,1775829505914,-1200.0,0.00012098,2]
[420232241,1775829505950,-150.0,0.00012098,2]
[420232242,1775829506233,-75.89800956,0.00012099,2]
[420232243,1775829508254,-424.10199044,0.00012099,2]
[420232244,1775829508297,-500.0,0.00012099,2]
[420232245,1775829508358,-300.0,0.00012099,2]
[420232246,1775829508406,-500.0,0.00012099,2]
[420232247,1775829508464,-500.0,0.00012099,2]
[420232248,1775829508612,-577.00518609,0.00012099,2]
[420232249,1775829508685,-500.0,0.00012099,2]
[420232250,1775829508738,-176.98410896,0.00012099,2]
[420232251,1775829508790,-644.96283734,0.00012099,2]
[420232252,1775829508885,-500.0,0.00012099,2]
[420232253,1775829509023,-500.0,0.00012099,2]
[420232254,1775829509071,-500.0,0.00012099,2]
[420232255,1775829509109,-500.0,0.00012099,2]
[420232256,1775829509163,-500.0,0.00012099,2]
[420232257,1775829509210,-500.0,0.00012099,2]
[420232258,1775829509630,-279.11092131,0.00012099,2]
[420232259,1775829509689,-220.88907869,0.00012099,2]
[420232260,1775829509718,-279.11092131,0.00012099,2]
[420232261,1775829509736,-0.01,0.00012099,2]
[420232262,1775829514210,5000.01,8e-05,2]
[420232263,1775829514240,5000.01,8e-05,2]
[420232264,1775829514267,1973.54797761,8e-05,2]
[420232266,1775830069169,-213.32241636,0.00011999,2]
[420232267,1775830069197,-265.12737532,0.00011999,2]
[420232268,1775830069227,-1200.0,0.00011999,2]
[420232269,1775830069254,-5000.0,0.00011999,2]
[420232270,1775830069276,-1321.359341,0.00012,2]
[420232271,1775830069302,-172.85039568,0.00012,2]
[420232272,1775830069325,-1827.34047164,0.00012,2]
[420232273,1775830080640,-672.65952836,0.00012,2]
[420232274,1775830080694,-5000.0,0.00012059,2]
[420232275,1775830080730,-2303.2589893,0.00012059,2]
[420232276,1775830080767,-150.0,0.00012097,2]
[420232277,1775830080805,-184.5078,0.00012097,2]
[420232278,1775830080843,-1689.57368234,0.00012098,2]
[420232279,1775830090081,-10000.0,0.00012098,2]